bitfinex-derivatives/quotes_BTCF0:USTF0_20250417
["timestamp","ask_amount","ask_price","bid_price","bid_amount"]
[1744854403792,0.12049,84402.0,84401.0,0.2425457]
[1744854404496,0.12149,84402.0,84401.0,0.2425457]
[1744854405500,0.12049,84402.0,84401.0,0.2425457]
[1744854405699,0.12149,84402.0,84401.0,0.2425457]
[1744854406402,0.11949,84402.0,84401.0,0.2425457]
[1744854406600,0.12049,84402.0,84401.0,0.2425457]
[1744854407599,0.11949,84402.0,84401.0,0.2425457]
[1744854407800,0.12049,84402.0,84401.0,0.2425457]
[1744854410706,0.002,84402.0,84401.0,0.2425457]
[1744854410910,0.12057,84402.0,84401.0,0.2746457]
[1744854411204,0.11957,84402.0,84401.0,0.2746457]
[1744854411895,0.11957,84402.0,84401.0,0.2756457]
[1744854412400,0.11957,84402.0,84401.0,0.2746457]
[1744854412601,0.11957,84402.0,84401.0,0.2756457]
[1744854412797,0.11857,84402.0,84401.0,0.2756457]
[1744854413608,0.11957,84402.0,84401.0,0.2756457]
[1744854414205,0.11957,84402.0,84401.0,0.2746457]
[1744854415903,0.00108,84402.0,84401.0,0.2746457]
[1744854416497,0.001,84402.0,84401.0,0.2746457]
[1744854416696,0.00108,84402.0,84401.0,0.2746457]
[1744854417002,8e-05,84402.0,84401.0,0.2746457]
[1744854418105,0.00017777,84405.0,84404.0,0.1184872]
[1744854418306,0.00017777,84405.0,84404.0,0.2684872]
[1744854418902,0.00017777,84405.0,84404.0,0.3336872]
[1744854419604,0.00017777,84405.0,84404.0,0.3346872]
[1744854421608,0.11866357,84405.0,84404.0,0.3346872]
[1744854422606,0.15186357,84405.0,84404.0,0.3346872]
[1744854423715,0.51266357,84405.0,84404.0,0.3346872]
[1744854424014,0.51266357,84405.0,84404.0,0.3022872]
[1744854424312,0.51266357,84405.0,84404.0,0.2684872]
[1744854424715,0.51266357,84405.0,84404.0,0.1184872]
[1744854425407,0.51366357,84405.0,84404.0,0.1184872]
[1744854425711,0.51466357,84405.0,84404.0,0.1184872]
[1744854426099,0.51366357,84405.0,84404.0,0.1184872]
[1744854426304,0.51566357,84405.0,84404.0,0.1184872]
[1744854426913,0.51366357,84405.0,84404.0,0.1184872]
[1744854427099,0.51566357,84405.0,84404.0,0.1184872]
[1744854429216,0.51366357,84405.0,84404.0,0.1184872]
[1744854429416,0.51566357,84405.0,84404.0,0.1184872]
[1744854430616,0.15486357,84405.0,84404.0,0.2684872]
[1744854430817,0.15486357,84405.0,84404.0,0.2988872]
[1744854431417,0.03437777,84405.0,84404.0,0.2988872]
[1744854431715,0.00317777,84405.0,84404.0,0.2988872]
[1744854431918,0.12166357,84405.0,84404.0,0.2988872]
[1744854432307,0.12066357,84405.0,84404.0,0.2988872]
[1744854433715,0.00217777,84405.0,84404.0,0.2988872]
[1744854434016,0.00117777,84405.0,84404.0,0.2998872]
[1744854434209,0.00125777,84405.0,84404.0,0.2998872]
[1744854435018,0.00025777,84405.0,84404.0,0.2998872]
[1744854436019,0.00017777,84405.0,84404.0,0.2998872]
[1744854436320,0.00025777,84405.0,84404.0,0.2998872]
[1744854436919,0.00025777,84405.0,84404.0,0.31159813]
[1744854439624,0.00025777,84405.0,84404.0,0.2998872]
[1744854440929,0.00025777,84405.0,84404.0,0.2694872]
[1744854441228,0.15164357,84405.0,84404.0,0.2694872]
[1744854441612,0.00025777,84405.0,84404.0,0.2694872]
[1744854441827,0.00025777,84405.0,84404.0,0.3014872]
[1744854442022,0.005,84410.0,84409.0,0.1184802]
[1744854442223,0.005,84410.0,84409.0,0.2684802]
[1744854442623,0.00508,84410.0,84409.0,0.2684802]
[1744854442826,0.00508,84410.0,84409.0,0.3319802]
[1744854443029,0.005,84410.0,84409.0,0.3319802]
[1744854443329,0.00508,84410.0,84409.0,0.3319802]
[1744854444032,0.1235588,84410.0,84409.0,0.3319802]
[1744854444232,0.1235588,84410.0,84409.0,0.2684802]
[1744854444429,0.1184802,84409.0,84408.0,0.1184812]
[1744854444630,0.1840802,84409.0,84408.0,0.1184812]
[1744854445329,0.1777279,84407.0,84406.0,0.1184842]
[1744854445723,0.2716279,84407.0,84406.0,0.1184842]
[1744854446434,0.1531421,84407.0,84406.0,0.2984842]
[1744854446633,0.1531421,84407.0,84406.0,0.6592842]
[1744854446828,0.1541421,84407.0,84406.0,0.6592842]
[1744854447030,0.1541421,84407.0,84406.0,0.2984842]
[1744854447423,0.1561421,84407.0,84406.0,0.2984842]
[1744854447620,0.1562221,84407.0,84406.0,0.2984842]
[1744854448328,0.1552221,84407.0,84406.0,0.2984842]
[1744854448932,0.1542221,84407.0,84406.0,0.2984842]
[1744854450034,0.1552221,84407.0,84406.0,0.2984842]
[1744854450533,0.1542221,84407.0,84406.0,0.2984842]
[1744854450733,0.1552221,84407.0,84406.0,0.2984842]
[1744854452242,0.1542221,84407.0,84406.0,0.2984842]
[1744854454945,0.1532221,84407.0,84406.0,0.2984842]
[1744854455147,0.1542221,84407.0,84406.0,0.2984842]
[1744854459639,0.09498,84407.0,84406.0,0.2984842]
[1744854459844,0.06258,84407.0,84406.0,0.3300842]
[1744854460841,0.005,84410.0,84409.0,0.1184802]
[1744854461149,0.005,84410.0,84409.0,0.2884802]
[1744854461541,0.00508,84410.0,84409.0,0.3500802]
[1744854462051,0.00608,84410.0,84409.0,0.3500802]
[1744854463444,0.00508,84410.0,84409.0,0.3500802]
[1744854463647,0.00608,84410.0,84409.0,0.3500802]
[1744854464449,0.00608,84410.0,84409.0,0.7108802]
[1744854468148,0.1245588,84410.0,84409.0,0.7108802]
[1744854468453,0.00608,84410.0,84409.0,0.7108802]
[1744854468854,0.03868,84410.0,84409.0,0.7108802]
[1744854469043,0.07198,84410.0,84409.0,0.7108802]
[1744854471655,0.03868,84410.0,84409.0,0.7108802]
[1744854473053,0.1571588,84410.0,84409.0,0.7108802]
[1744854473254,0.1887588,84410.0,84409.0,0.6799802]
[1744854477048,0.1887588,84410.0,84409.0,0.3191802]
[1744854479455,0.1184886,84403.0,84402.0,0.0592445]
[1744854479654,0.1184886,84403.0,84402.0,0.2621445]
[1744854480557,0.1184886,84403.0,84402.0,0.2641445]
[1744854480753,0.1834886,84403.0,84402.0,0.002]
[1744854480955,0.19558115,84403.0,84402.0,0.002]
[1744854482157,0.1184971,84397.0,84396.0,0.00017777]
[1744854482362,0.4792971,84397.0,84396.0,0.00017777]
[1744854482558,0.0592528,84391.0,84384.0,0.1185149]
[1744854482752,0.4793139,84385.0,84384.0,8e-05]
[1744854482957,0.1185181,84382.0,84381.0,0.00068183]
[1744854483566,0.1185181,84382.0,84381.0,0.17845643]
[1744854484158,0.1195181,84382.0,84381.0,0.17845643]
[1744854485556,0.1832181,84382.0,84381.0,0.17845643]
[1744854485967,0.1842181,84382.0,84381.0,0.17845643]
[1744854486664,0.1842181,84382.0,84375.0,0.0001458]
[1744854486665,0.1185265,84376.0,84375.0,0.0001458]
[1744854487055,0.1185294,84374.0,84373.0,0.11870777]
[1744854487451,0.4793294,84374.0,84373.0,0.00017777]
[1744854487656,0.1491294,84374.0,84373.0,0.00017777]
[1744854487870,0.16127871,84374.0,84373.0,0.00017777]
[1744854488165,0.52207871,84374.0,84373.0,0.00025777]
[1744854488362,0.48046931,84374.0,84363.0,0.031]
[1744854488561,0.1778142,84366.0,84365.0,0.1185412]
[1744854488864,0.1778142,84366.0,84365.0,0.02]
[1744854489067,0.1778142,84366.0,84365.0,0.02008]
[1744854489268,0.2749142,84366.0,84365.0,0.02008]
[1744854489870,0.2749142,84366.0,84365.0,0.138542]
[1744854490065,0.2749142,84366.0,84365.0,0.138622]
[1744854491269,0.0971,84366.0,84365.0,0.138622]
[1744854491465,0.1778077,84371.0,84370.0,0.1185336]
[1744854491765,0.2438077,84371.0,84370.0,0.2685336]
[1744854492755,0.2770077,84371.0,84370.0,0.2685336]
[1744854493366,0.2770077,84371.0,84370.0,0.15]
[1744854494959,0.2760077,84371.0,84370.0,0.15]
[1744854495163,0.2770077,84371.0,84370.0,0.15]
[1744854495457,0.2770077,84371.0,84370.0,0.268535]
[1744854495660,0.2770077,84371.0,84370.0,0.268615]
[1744854495968,0.2770077,84371.0,84370.0,0.15]
[1744854496363,0.2760077,84371.0,84370.0,0.15]
[1744854496562,0.2770077,84371.0,84370.0,0.15]
[1744854496863,0.2770077,84371.0,84370.0,0.15008]
[1744854497063,0.2770077,84371.0,84370.0,0.15024]
[1744854497267,0.2770077,84371.0,84370.0,0.268775]
[1744854497467,0.2760077,84371.0,84370.0,0.268775]
[1744854497771,0.2770077,84371.0,84370.0,0.268775]
[1744854499769,0.2760077,84371.0,84370.0,0.268775]
[1744854499969,0.2770077,84371.0,84370.0,0.268775]
[1744854500371,0.2760077,84371.0,84370.0,0.268775]
[1744854500568,0.2770077,84371.0,84370.0,0.15024]
[1744854502881,0.2760077,84371.0,84370.0,0.15024]
[1744854503177,0.2770077,84371.0,84370.0,0.15024]
[1744854504078,0.6378077,84371.0,84370.0,0.15024]
[1744854508380,0.6378077,84371.0,84370.0,0.15016]
[1744854508779,0.6378077,84371.0,84370.0,0.15024]
[1744854510082,0.1185434,84364.0,84363.0,0.0322]
[1744854510377,0.1185434,84364.0,84355.0,0.00509747]
[1744854510378,0.1185518,84358.0,84355.0,0.00509747]
[1744854510566,0.5562318,84358.0,84355.0,0.00509747]
[1744854510973,0.5562318,84358.0,84356.0,0.0326]
[1744854511178,0.5562318,84358.0,84357.0,0.00025777]
[1744854512081,0.5562318,84358.0,84357.0,0.00125777]
[1744854512470,0.5562318,84358.0,84357.0,0.00425777]
[1744854513481,0.5562318,84358.0,84357.0,0.00417777]
[1744854513780,0.5562318,84358.0,84357.0,0.00425777]
[1744854513970,0.1185687,84346.0,84345.0,0.000108]
[1744854514174,0.1185687,84346.0,84342.0,0.0321]
[1744854514175,0.1185729,84343.0,84342.0,0.0321]
[1744854514380,0.1285729,84343.0,84342.0,0.0321]
[1744854514581,0.1285729,84343.0,84342.0,0.03218]
[1744854515981,0.1285729,84343.0,84342.0,0.03618]
[1744854516181,0.1295729,84343.0,84342.0,0.04318]
[1744854517087,0.14173028,84343.0,84342.0,0.04318]
[1744854517283,0.1185842,84335.0,84333.0,0.000108]
[1744854517592,0.1285842,84335.0,84334.0,0.02017777]
[1744854517774,0.1285842,84335.0,84334.0,0.02025777]
[1744854517978,0.1285842,84335.0,84334.0,0.00025777]
[1744854518181,0.118587,84333.0,84332.0,0.0307]
[1744854518382,0.128587,84333.0,84332.0,0.0307]
[1744854518582,0.1185912,84330.0,84328.0,0.1185933]
[1744854518886,0.1285912,84330.0,84329.0,0.06579905]
[1744854519188,0.1285912,84330.0,84329.0,0.18439165]
[1744854519889,0.1295912,84330.0,84329.0,0.19139165]
[1744854521801,0.1295912,84330.0,84329.0,0.19439165]
[1744854522697,0.011,84330.0,84329.0,0.19439165]
[1744854524193,0.0592891,84340.0,84339.0,0.059288]
[1744854524401,0.0592891,84340.0,84339.0,0.229288]
[1744854525500,0.0602891,84340.0,84339.0,0.232288]
[1744854525800,0.1788705,84340.0,84339.0,0.232288]
[1744854526596,0.1788705,84340.0,84339.0,0.234288]
[1744854526597,0.0602891,84340.0,84339.0,0.234288]
[1744854527098,0.001,84340.0,84339.0,0.234288]
[1744854529503,0.1195771,84340.0,84339.0,0.234288]
[1744854531803,0.1195771,84340.0,84339.0,0.175]
[1744854531998,0.1829771,84340.0,84339.0,0.00508]
[1744854532201,0.1829771,84340.0,84339.0,0.005]
[1744854532398,0.1829771,84340.0,84339.0,0.00508]
[1744854532601,0.1829771,84340.0,84339.0,0.005]
[1744854532804,0.1829771,84340.0,84339.0,0.00508]
[1744854533100,0.1829771,84340.0,84339.0,0.005]
[1744854533291,0.1829771,84340.0,84339.0,0.00508]
[1744854534696,0.1829771,84340.0,84339.0,0.3036585]
[1744854534902,0.1829771,84340.0,84339.0,0.00508]
[1744854541910,0.1829771,84340.0,84339.0,0.005]
[1744854542110,0.1829771,84340.0,84339.0,0.00508]
[1744854542409,0.2598171,84340.0,84339.0,0.00508]
[1744854544512,0.6206171,84340.0,84339.0,0.00508]
[1744854545515,0.1185912,84330.0,84329.0,0.00509905]
[1744854546315,0.1840912,84330.0,84329.0,0.00509905]
[1744854546510,0.5448912,84330.0,84329.0,0.00509905]
[1744854546817,0.1186024,84322.0,84321.0,0.00017787]
[1744854547119,0.4794024,84322.0,84321.0,0.00017787]
[1744854547709,0.5760024,84322.0,84321.0,0.00025787]
[1744854548215,0.5770024,84322.0,84321.0,0.00425787]
[1744854549511,0.5770024,84322.0,84321.0,0.00625787]
[1744854549809,0.1186207,84309.0,84308.0,0.000108]
[1744854550016,0.1186207,84309.0,84308.0,0.1886221]
[1744854550323,0.1186207,84309.0,84308.0,0.1887021]
[1744854550522,0.1502207,84309.0,84308.0,0.2213021]
[1744854551114,0.1512207,84309.0,84308.0,0.2283021]
[1744854553009,0.1512207,84309.0,84308.0,0.11268]
[1744854553209,0.1842207,84309.0,84308.0,0.08008]
[1744854553413,0.5450207,84309.0,84308.0,0.08]
[1744854553616,0.5450207,84309.0,84308.0,0.08008]
[1744854554106,0.5440207,84309.0,84308.0,0.07308]
[1744854554305,0.5450207,84309.0,84308.0,0.07708]
[1744854554504,0.5450207,84309.0,84308.0,0.07968]
[1744854554710,0.5110207,84309.0,84308.0,0.1943021]
[1744854554906,0.5120207,84309.0,84308.0,0.1963021]
[1744854555111,0.5120207,84309.0,84308.0,0.1933021]
[1744854555323,0.5120207,84309.0,84308.0,0.07768]
[1744854555521,0.5450207,84309.0,84308.0,0.14018]
[1744854556016,0.5450207,84309.0,84308.0,0.13818]
[1744854557012,0.0593119,84307.0,84298.0,0.000108]
[1744854557219,0.1186306,84302.0,84301.0,0.0308]
[1744854557414,0.1186306,84302.0,84301.0,0.0808]
[1744854557415,0.4794306,84302.0,84301.0,0.0808]
[1744854557614,0.4794306,84302.0,84301.0,0.11348]
[1744854558114,0.5742306,84302.0,84301.0,0.11348]
[1744854558310,0.5752306,84302.0,84301.0,0.234112]
[1744854559019,0.5752306,84302.0,84301.0,0.237112]
[1744854559216,0.1196306,84302.0,84301.0,0.237112]
[1744854559517,0.001,84302.0,84301.0,0.237112]
[1744854560720,0.001,84302.0,84301.0,0.497112]
[1744854561727,0.001,84302.0,84301.0,0.857912]
[1744854562520,0.00017787,84312.0,84311.0,0.1186179]
[1744854562714,0.00017787,84312.0,84311.0,0.6394179]
[1744854563125,0.00017787,84312.0,84311.0,0.7012179]
[1744854564026,0.00017787,84312.0,84311.0,0.7022179]
[1744854564222,0.00017787,84312.0,84311.0,0.7032179]
[1744854565227,0.00017787,84312.0,84311.0,0.3424179]
[1744854565727,0.11879437,84312.0,84311.0,0.3424179]
[1744854565924,0.15059437,84312.0,84311.0,0.162]
[1744854566225,0.18239437,84312.0,84311.0,0.2806979]
[1744854566415,0.18239437,84312.0,84311.0,0.2806179]
[1744854566623,0.18239437,84312.0,84311.0,0.2806979]
[1744854567015,0.18239437,84312.0,84311.0,0.3448979]
[1744854567414,0.18239437,84312.0,84311.0,0.16208]
[1744854568126,0.18239437,84312.0,84311.0,0.162]
[1744854568721,0.18239437,84312.0,84311.0,0.16208]
[1744854569418,0.18239437,84312.0,84311.0,0.22718]
[1744854569623,0.18239437,84312.0,84311.0,0.3457979]
[1744854571518,0.18239437,84312.0,84311.0,0.2806979]
[1744854572026,0.18239437,84312.0,84311.0,0.2806179]
[1744854572230,0.18239437,84312.0,84311.0,0.2806979]
[1744854575333,0.18239437,84312.0,84311.0,0.16208]
[1744854575637,0.1186278,84306.0,84305.0,0.1186258]
[1744854575837,0.4794278,84306.0,84305.0,0.1286258]
[1744854576042,0.5731278,84306.0,84305.0,0.1286258]
[1744854576335,0.5731278,84306.0,84305.0,0.01008]
[1744854576737,0.5731278,84306.0,84305.0,8e-05]
[1744854576931,0.5731278,84306.0,84305.0,0.1197064]
[1744854577132,0.5741278,84306.0,84305.0,0.1217064]
[1744854577536,0.5741278,84306.0,84305.0,0.1216264]
[1744854577733,0.5741278,84306.0,84305.0,0.1217064]
[1744854578940,0.2133278,84306.0,84305.0,0.1217064]
[1744854579139,0.5741278,84306.0,84305.0,0.1317064]
[1744854580042,0.5741278,84306.0,84305.0,0.1617064]
[1744854580234,0.5113278,84306.0,84305.0,0.1617064]
[1744854584437,0.5113278,84306.0,84305.0,0.1316264]
[1744854584741,0.5440278,84306.0,84305.0,0.01308]
[1744854587431,0.5440278,84306.0,84305.0,0.1317064]
[1744854588145,0.5440278,84306.0,84305.0,0.01308]
[1744854588544,0.5440278,84306.0,84305.0,0.013]
[1744854588842,0.5440278,84306.0,84305.0,0.01308]
[1744854589447,0.5440278,84306.0,84305.0,0.00308]
[1744854590536,0.5440278,84306.0,84305.0,0.003]
[1744854590732,0.5440278,84306.0,84305.0,0.1217064]
[1744854592443,0.5440278,84306.0,84305.0,0.1317064]
[1744854593038,0.5440278,84306.0,84305.0,0.1648064]
[1744854598349,0.5113278,84306.0,84305.0,0.1648064]
[1744854600450,0.5113278,84306.0,84305.0,0.04618]
[1744854600644,0.5427278,84306.0,84305.0,0.01308]
[1744854602944,0.5427278,84306.0,84305.0,0.1317064]
[1744854606251,0.5427278,84306.0,84305.0,0.01308]
[1744854607143,0.5427278,84306.0,84305.0,0.1317064]
[1744854609246,0.5113278,84306.0,84305.0,0.1317064]
[1744854609447,0.5113278,84306.0,84305.0,0.1922064]
[1744854612258,0.5113278,84306.0,84305.0,0.1619064]
[1744854612453,0.5445278,84306.0,84305.0,0.1317064]
[1744854612656,0.5445278,84306.0,84305.0,0.01308]
[1744854613257,0.9053278,84306.0,84305.0,0.00308]
[1744854613961,0.9053278,84306.0,84305.0,0.003]
[1744854614162,0.9053278,84306.0,84305.0,0.00308]
[1744854615860,0.0593174,84299.0,84292.0,0.0593221]
[1744854616063,0.1186418,84295.0,84294.0,0.1186418]
[1744854616262,0.0593223,84292.0,84285.0,0.0001458]
[1744854616453,0.0593245,84289.0,84286.0,0.0323]
[1744854616647,0.1488503,84288.0,84287.0,0.0304]
[1744854616846,0.5399503,84288.0,84287.0,0.1204]
[1744854617051,0.5719503,84288.0,84287.0,0.1527]
[1744854618361,0.5719503,84288.0,84279.0,0.1186625]
[1744854618362,0.0593287,84283.0,84279.0,0.1186625]
[1744854618661,0.1186601,84281.0,84280.0,0.1827616]
[1744854618855,0.4794601,84281.0,84280.0,0.2827616]
[1744854619159,0.5434601,84281.0,84280.0,0.1641]
[1744854619555,0.5434601,84281.0,84280.0,0.1]
[1744854619757,0.5434601,84281.0,84280.0,0.10008]
[1744854620262,0.1186644,84278.0,84277.0,0.00510219]
[1744854620460,0.1186644,84278.0,84277.0,0.01510219]
[1744854620658,0.1186644,84278.0,84277.0,0.01518219]
[1744854620854,0.1186644,84278.0,84277.0,0.13384799]
[1744854621054,0.1833644,84278.0,84277.0,0.01518219]
[1744854621955,0.1843644,84278.0,84277.0,0.01518219]
[1744854624059,0.1516644,84278.0,84277.0,0.01518219]
[1744854625666,0.1516644,84278.0,84277.0,0.13384799]
[1744854626068,0.1516644,84278.0,84277.0,0.01518219]
[1744854626775,0.1516644,84278.0,84277.0,0.13384799]
[1744854627361,0.1516644,84278.0,84277.0,0.01518219]
[1744854628370,0.1516644,84278.0,84277.0,0.01510219]
[1744854628573,0.1780169,84270.0,84269.0,0.118677]
[1744854628771,0.5388169,84270.0,84269.0,0.268677]
[1744854629269,0.5388169,84270.0,84269.0,0.268757]
[1744854629463,0.5707169,84270.0,84269.0,0.268677]
[1744854629665,0.5707169,84270.0,84269.0,0.268757]
[1744854629866,0.6038169,84270.0,84269.0,0.300257]
[1744854630067,0.6048169,84270.0,84269.0,0.300257]
[1744854630469,0.4861384,84270.0,84269.0,0.300257]
[1744854630769,0.0934384,84270.0,84269.0,0.300257]
[1744854634064,0.0934384,84270.0,84269.0,0.300177]
[1744854634267,0.0934384,84270.0,84269.0,0.300257]
[1744854638173,0.0934384,84270.0,84269.0,0.15008]
[1744854638369,0.1264384,84270.0,84269.0,0.15]
[1744854638676,0.1264384,84270.0,84269.0,0.268757]
[1744854639572,0.1264384,84270.0,84269.0,0.15008]
[1744854640870,0.1264384,84270.0,84269.0,0.15]
[1744854641179,0.1264384,84270.0,84269.0,0.15008]
[1744854641773,0.13853298,84270.0,84269.0,0.15008]
[1744854644875,0.13853298,84270.0,84269.0,8e-05]
[1744854645473,0.1186841,84264.0,84263.0,0.031]
[1744854645671,0.4794841,84264.0,84263.0,0.101]
[1744854645872,0.4794841,84264.0,84263.0,0.03]
[1744854646076,0.1186982,84254.0,84253.0,0.031108]
[1744854646276,0.1187052,84249.0,84248.0,1e-08]
[1744854646477,0.1187052,84249.0,84248.0,0.07]
[1744854646680,0.1187052,84249.0,84248.0,0.07008]
[1744854647177,0.1805052,84249.0,84248.0,0.07]
[1744854647369,0.1805052,84249.0,84248.0,0.07008]
[1744854648872,0.1815052,84249.0,84248.0,0.07008]
[1744854655992,0.1197052,84249.0,84248.0,0.1887866]
[1744854656377,0.1197052,84249.0,84248.0,0.2535866]
[1744854658790,0.001,84249.0,84248.0,0.2535866]
[1744854659789,0.3608,84253.0,84252.0,0.118701]
[1744854659977,0.3608,84253.0,84252.0,0.288701]
[1744854660592,0.1780276,84264.0,84263.0,0.1186841]
[1744854660788,0.0593422,84264.0,84263.0,0.2886841]
[1744854661992,0.0312,84266.0,84264.0,0.1186841]
[1744854662296,0.0312,84266.0,84264.0,0.2786841]
[1744854663290,0.3608,84274.0,84266.0,0.0593405]
[1744854663593,0.03327798,84272.0,84271.0,0.1186742]
[1744854663789,0.00017798,84272.0,84271.0,0.2786742]
[1744854663987,0.11885078,84272.0,84271.0,0.2786742]
[1744854664690,0.12285078,84272.0,84271.0,0.2786742]
[1744854665193,0.11885078,84272.0,84271.0,0.2786742]
[1744854665393,0.11985078,84272.0,84271.0,0.2786742]
[1744854673207,0.0593412,84266.0,84263.0,0.0593424]
[1744854673399,0.1809841,84265.0,84264.0,0.1186841]
[1744854673597,0.5740841,84265.0,84264.0,0.1806841]
[1744854675007,0.5750841,84265.0,84264.0,0.1806841]
[1744854675508,0.5750841,84265.0,84264.0,0.1486841]
[1744854676106,0.5750841,84265.0,84264.0,0.1487641]
[1744854677307,0.5750841,84265.0,84264.0,0.1818641]
[1744854683812,0.3941,84265.0,84264.0,0.1818641]
[1744854684018,0.3618,84265.0,84264.0,0.2457641]
[1744854685419,0.4238,84265.0,84264.0,0.2457641]
[1744854686617,0.5424827,84265.0,84264.0,0.2457641]
[1744854687317,0.5424827,84265.0,84264.0,0.2144641]
[1744854687518,0.5424827,84265.0,84264.0,0.1817841]
[1744854687819,0.5424827,84265.0,84264.0,0.1818641]
[1744854688007,0.5424827,84265.0,84264.0,0.1486841]
[1744854688212,0.5424827,84265.0,84264.0,0.1487641]
[1744854688412,0.5424827,84265.0,84264.0,0.1486841]
[1744854688715,0.5424827,84265.0,84264.0,0.1487641]
[1744854689018,0.5414827,84265.0,84264.0,0.1487641]
[1744854689316,0.5434827,84265.0,84264.0,0.03008]
[1744854689519,0.5434827,84265.0,84264.0,0.03]
[1744854690213,0.5434827,84265.0,84264.0,0.03008]
[1744854690415,0.5434827,84265.0,84264.0,8e-05]
[1744854691117,0.5434827,84265.0,84264.0,0.1186841]
[1744854691421,0.5434827,84265.0,84264.0,0.1187641]
[1744854692019,0.5434827,84265.0,84264.0,0.2987641]
[1744854698524,0.5434827,84265.0,84264.0,8e-05]
[1744854698725,0.5434827,84265.0,84264.0,0.1187641]
[1744854700027,0.5434827,84265.0,84264.0,0.2687641]
[1744854723545,0.5434827,84265.0,84264.0,0.2994641]
[1744854723850,0.3628,84265.0,84264.0,0.2994641]
[1744854729152,0.3628,84265.0,84264.0,0.31141164]
[1744854729952,0.002,84265.0,84264.0,0.31141164]
[1744854731045,0.00017798,84272.0,84271.0,0.1186742]
[1744854731244,0.00017798,84272.0,84271.0,0.2886742]
[1744854731941,0.005,84280.0,84273.0,0.1186714]
[1744854732150,0.005,84280.0,84273.0,0.2886714]
[1744854733052,0.005,84280.0,84279.0,0.118663]
[1744854733248,0.005,84280.0,84279.0,0.298663]
[1744854733853,0.005,84280.0,84279.0,0.361763]
[1744854734562,0.006,84280.0,84279.0,0.362763]
[1744854735050,0.006,84280.0,84279.0,0.363763]
[1744854735553,0.006,84280.0,84279.0,0.362763]
[1744854735851,0.006,84280.0,84279.0,0.364763]
[1744854736549,0.00017798,84282.0,84281.0,0.1186601]
[1744854736747,0.031,84290.0,84289.0,0.1186489]
[1744854737056,0.031,84290.0,84289.0,0.2686489]
[1744854737753,0.3608,84297.0,84296.0,0.118639]
[1744854737948,0.39247798,84298.0,84297.0,0.1186376]
[1744854738154,0.39247798,84298.0,84297.0,0.2886376]
[1744854738751,0.51111418,84298.0,84297.0,0.2886376]
[1744854740556,0.51311418,84298.0,84297.0,0.2886376]
[1744854741158,0.39447798,84298.0,84297.0,0.2886376]
[1744854742953,0.42657798,84298.0,84297.0,0.2886376]
[1744854743350,0.42557798,84298.0,84297.0,0.2886376]
[1744854744563,0.54421418,84298.0,84297.0,0.2886376]
[1744854744958,0.54421418,84298.0,84297.0,0.2887176]
[1744854745360,0.54421418,84298.0,84297.0,0.2886376]
[1744854745559,0.54421418,84298.0,84297.0,0.2887176]
[1744854753565,0.42557798,84298.0,84297.0,0.2887176]
[1744854754065,0.1359057,84316.0,84305.0,0.1186264]
[1744854754259,0.0308,84308.0,84305.0,0.2686264]
[1744854754460,0.0315,84307.0,84305.0,0.2686264]
[1744854754856,0.0315,84307.0,84305.0,0.3317264]
[1744854755060,0.0308,84308.0,84305.0,0.3317264]
[1744854755061,0.3608,84312.0,84305.0,0.3317264]
[1744854755261,0.0315,84311.0,84310.0,0.1186193]
[1744854755457,0.0315,84311.0,84310.0,0.2886193]
[1744854755658,0.3608,84312.0,84311.0,0.1186179]
[1744854755858,0.3608,84312.0,84311.0,0.2686179]
[1744854756856,0.00017798,84314.0,84313.0,0.1186151]
[1744854757062,0.36090801,84317.0,84313.0,0.18]
[1744854757369,0.36090801,84317.0,84316.0,0.1186109]
[1744854757667,0.36090801,84317.0,84316.0,0.2886109]
[1744854757867,0.00010801,84317.0,84316.0,0.2886109]
[1744854758071,0.0316,84324.0,84317.0,0.0593047]
[1744854758258,0.0316,84324.0,84320.0,0.1186053]
[1744854758462,0.00053671,84325.0,84321.0,0.0593019]
[1744854758664,0.00053671,84325.0,84324.0,0.1185996]
[1744854758860,0.00017798,84325.0,84324.0,0.2985996]
[1744854759066,0.00025798,84325.0,84324.0,0.2985996]
[1744854759866,0.00825798,84325.0,84324.0,0.2985996]
[1744854760256,0.00025798,84325.0,84324.0,0.2985996]
[1744854760565,0.01025798,84325.0,84324.0,0.2985996]
[1744854766573,0.04125798,84325.0,84324.0,0.2985996]
[1744854768367,0.15985618,84325.0,84324.0,0.2985996]
[1744854768673,0.19215618,84325.0,84324.0,0.2985996]
[1744854770779,0.19207618,84325.0,84324.0,0.2985996]
[1744854770976,0.07347798,84325.0,84324.0,0.2985996]
[1744854771177,0.07512377,84325.0,84324.0,0.2985996]
[1744854772567,0.19372197,84325.0,84324.0,0.2985996]
[1744854773570,0.07512377,84325.0,84324.0,0.2985996]
[1744854775765,0.07347798,84325.0,84324.0,0.2985996]
[1744854775971,0.01025798,84325.0,84324.0,0.3315996]
[1744854776172,0.01190377,84325.0,84324.0,0.3315996]
[1744854776670,0.01182377,84325.0,84324.0,0.3315996]
[1744854776874,0.01190377,84325.0,84324.0,0.3315996]
[1744854778171,0.01190377,84325.0,84324.0,0.34320418]
[1744854780777,0.01190377,84325.0,84324.0,0.3315996]
[1744854785878,0.3921,84330.0,84326.0,0.0592978]
[1744854786188,0.3921,84330.0,84329.0,0.1185926]
[1744854786478,0.00026573,84334.0,84333.0,0.118587]
[1744854786479,1e-08,84334.0,84333.0,0.118587]
[1744854786780,1e-08,84334.0,84333.0,0.288587]
[1744854786983,0.0333,84337.0,84336.0,0.1185828]
[1744854787279,0.0333,84337.0,84336.0,0.6293828]
[1744854788272,0.0393,84337.0,84336.0,0.6303828]
[1744854789376,0.0413,84337.0,84336.0,0.6303828]
[1744854791783,0.008,84337.0,84336.0,0.6303828]
[1744854795482,0.0301,84341.0,84336.0,0.6303828]
[1744854795682,0.0301,84341.0,84340.0,0.1185771]
[1744854795887,0.03018,84341.0,84340.0,0.2685771]
[1744854796987,0.03618,84341.0,84340.0,0.2695771]
[1744854797189,0.03918,84341.0,84340.0,0.2695771]
[1744854798983,0.0391,84341.0,84340.0,0.2695771]
[1744854799185,0.03918,84341.0,84340.0,0.2695771]
[1744854800680,0.0391,84341.0,84340.0,0.2695771]
[1744854800879,0.0699,84341.0,84340.0,0.2695771]
[1744854803780,0.1884757,84341.0,84340.0,0.2695771]
[1744854808693,0.0699,84341.0,84340.0,0.2695771]
[1744854810297,0.0391,84341.0,84340.0,0.2695771]
[1744854811492,0.03918,84341.0,84340.0,0.2695771]
[1744854812392,0.00908,84341.0,84340.0,0.2695771]
[1744854814696,0.005,84358.0,84347.0,0.1185673]
[1744854814896,0.1514584,84354.0,84350.0,0.0592814]
[1744854815100,0.00010801,84355.0,84354.0,0.0592786]